[Event "EYCC Girls-U10 2019"]
[Site "Bratislava"]
[Date "2019.08.02"]
[Round "1.1"]
[White "Shukhman, Anna"]
[Black "Buchtova, Viktorie"]
[Result "1-0"]
[ECO "C66"]
[WhiteElo "1806"]
[BlackElo "1228"]
[Annotator "NA"]
[PlyCount "67"]
[EventDate "2019.08.02"]
[EventType "swiss"]
[EventCountry "SVK"]
[SourceTitle "playchess.com"]
[Source "ChessBase"]
[SourceQuality "1"]
[TimeControl "40/5400+30:1800+30"]

1. e4 {[%emt 0:00:05]} e5 {[%emt 0:00:00]} 2. Nf3 {[%emt 0:00:00]} Nc6 {[%emt 0:00:00]} 3. Bb5 {[%emt 0:00:00]} Nf6 {[%emt 0:00:00]} 4. O-O {[%emt 0:00:00]} d6 {[%emt 0:00:19]} 5. d4 {[%emt 0:00:00]} Bd7 {[%emt 0:02:08]} 6. Nc3 {[%emt 0:01:04]} Be7 {[%emt 0:01:22]} 7. d5 {[%emt 0:02:43]} Nb8 {[%emt 0:06:14]} 8. Qe2 {[%emt 0:01:34]} O-O {[%emt 0:03:20]} 9. Bxd7 {[%emt 0:00:29]} Nbxd7 {[%emt 0:01:06]} 10. Nh4 {[%emt 0:00:14]} Nc5 {[%emt 0:04:54]} 11. Nf5 {[%emt 0:01:14]} Re8 {[%emt 0:05:45]} 12. Qf3 {[%emt 0:02:07]} Bf8 {[%emt 0:07:29]} 13. Bg5 {[%emt 0:03:18]} h6 {[%emt 0:05:23]} 14. Nxh6+ {[%emt 0:01:30]} gxh6 {[%emt 0:04:52]} 15. Bxf6 {[%emt 0:00:10]} Qc8 {[%emt 0:00:23]} 16. Qg3+ {[%emt 0:02:34]} Kh7 {[%emt 0:00:32]} 17. f4 {[%emt 0:00:57]} Nd7 {[%emt 0:02:44]} 18. fxe5 dxe5 {[%emt 0:01:10]} 19. Bh4 {[%emt 0:02:17]} Bc5+ {[%emt 0:03:58]} 20. Kh1 {[%emt 0:00:06]} Rf8 {[%emt 0:01:28]} 21. Rf5 {[%emt 0:01:42]} Qe8 {[%emt 0:06:05]} 22. Raf1 {[%emt 0:01:33]} a5 {[%emt 0:07:58]} 23. Qh3 {[%emt 0:02:26]} Ra6 {[%emt 0:02:58]} 24. Nb5 {[%emt 0:02:06]} Rg6 {[%emt 0:04:36]} 25. Nxc7 {[%emt 0:00:09]} Qc8 {[%emt 0:00:31]} 26. Rxf7+ {[%emt 0:00:39]} Kg8 {[%emt 0:02:46]} 27. Qf5 {[%emt 0:01:37]} Rg7 {[%emt 0:02:01]} 28. Rxg7+ {[%emt 0:00:20]} Kxg7 {[%emt 0:00:07]} 29. Ne6+ {[%emt 0:00:05]} Kg8 {[%emt 0:01:32]} 30. Qg6+ {[%emt 0:00:12]} Kh8 {[%emt 0:00:49]} 31. Nxf8 {[%emt 0:00:09]} Bxf8 {[%emt 0:00:45]} 32. Rf7 {[%emt 0:00:14]} Nf6 {[%emt 0:00:52]} 33. Bxf6+ {[%emt 0:00:08]} Bg7 {[%emt 0:00:04]} 34. Qxg7# {[%emt 0:00:06]} 1-0

[Event "EYCC Girls-U10 2019"]
[Site "Bratislava"]
[Date "2019.08.02"]
[Round "1.2"]
[White "Toth, Timea"]
[Black "Stoll, Lucia"]
[Result "0-1"]
[ECO "A13"]
[WhiteElo "1964"]
[BlackElo "1403"]
[Annotator "NA"]
[PlyCount "74"]
[EventDate "2019.08.02"]
[EventType "swiss"]
[EventCountry "SVK"]
[SourceTitle "playchess.com"]
[Source "ChessBase"]
[SourceQuality "1"]
[TimeControl "40/5400+30:1800+30"]

1. c4 {[%emt 0:00:00]} e6 {[%emt 0:00:00]} 2. Nc3 {[%emt 0:00:00]} d5 {[%emt 0:00:20]} 3. cxd5 {[%emt 0:00:00]} exd5 {[%emt 0:00:09]} 4. d4 {[%emt 0:00:00]} Nf6 {[%emt 0:00:59]} 5. Bf4 {[%emt 0:00:56]} Be7 {[%emt 0:01:48]} 6. Nf3 {[%emt 0:01:12]} O-O {[%emt 0:01:58]} 7. e3 {[%emt 0:02:10]} c6 {[%emt 0:05:02]} 8. Bd3 {[%emt 0:05:27]} Bg4 {[%emt 0:04:20]} 9. h3 {[%emt 0:03:54]} Bh5 {[%emt 0:00:16]} 10. O-O {[%emt 0:00:15]} Nbd7 {[%emt 0:01:53]} 11. Be2 {[%emt 0:04:41]} Nb6 {[%emt 0:02:25]} 12. Ne5 {[%emt 0:06:39]} Bxe2 {[%emt 0:00:58]} 13. Qxe2 {[%emt 0:00:31]} Bb4 14. Bg5 {[%emt 0:05:38]} Qd6 {[%emt 0:05:23]} 15. Bxf6 {[%emt 0:00:38]} Qxf6 {[%emt 0:01:08]} 16. a3 {[%emt 0:02:28]} Bxc3 {[%emt 0:00:59]} 17. bxc3 {[%emt 0:00:24]} Qe7 {[%emt 0:00:44]} 18. Qc2 {[%emt 0:16:48]} f6 {[%emt 0:01:37]} 19. Nf3 {[%emt 0:03:29]} Nc4 {[%emt 0:01:26]} 20. Qc1 {[%emt 0:07:00]} a5 {[%emt 0:01:10]} 21. Nd2 {[%emt 0:01:16]} Nd6 {[%emt 0:02:54]} 22. c4 {[%emt 0:07:07]} dxc4 {[%emt 0:02:18]} 23. Nxc4 {[%emt 0:00:52]} a4 {[%emt 0:04:24]} 24. Nxd6 {[%emt 0:11:00]} Qxd6 {[%emt 0:00:16]} 25. Qc4+ {[%emt 0:01:37]} Kh8 {[%emt 0:00:06]} 26. Rfc1 {[%emt 0:00:16]} Ra6 {[%emt 0:02:15]} 27. Qc5 {[%emt 0:00:43]} Rd8 {[%emt 0:00:53]} 28. Rab1 {[%emt 0:00:30]} b5 {[%emt 0:02:15]} 29. Rd1 {[%emt 0:01:20]} Kg8 {[%emt 0:00:31]} 30. e4 Qxc5 31. dxc5 {[%emt 0:00:48]} Raa8 {[%emt 0:00:48]} 32. f3 {[%emt 0:01:09]} Kf7 {[%emt 0:00:51]} 33. Kf2 {[%emt 0:01:00]} Ke6 {[%emt 0:01:03]} 34. Ke3 {[%emt 0:00:15]} Rab8 {[%emt 0:02:19]} 35. Rb4 {[%emt 0:00:28]} Rxd1 {[%emt 0:00:18]} 36. Rd4 {[%emt 0:00:44]} Rd8 {[%emt 0:00:43]} 37. Rxd8 {[%emt 0:00:12]} Rxd8 {[%emt 0:00:06]} 0-1

[Event "EYCC Girls-U10 2019"]
[Site "Bratislava"]
[Date "2019.08.02"]
[Round "1.3"]
[White "Smietanska, Wiktoria"]
[Black "Briem, Gudrun Fanney"]
[Result "1-0"]
[ECO "A27"]
[WhiteElo "1547"]
[BlackElo "1199"]
[Annotator "NA"]
[PlyCount "63"]
[EventDate "2019.08.02"]
[EventType "swiss"]
[EventCountry "SVK"]
[SourceTitle "playchess.com"]
[Source "ChessBase"]
[SourceQuality "1"]
[TimeControl "40/5400+30:1800+30"]

1. c4 {[%emt 0:00:00]} e5 {[%emt 0:00:00]} 2. Nc3 {[%emt 0:00:00]} Nc6 {[%emt 0:00:00]} 3. Nf3 {[%emt 0:00:00]} f5 {[%emt 0:00:25]} 4. d3 {[%emt 0:02:26]} Nf6 {[%emt 0:00:10]} 5. g3 {[%emt 0:01:56]} Bb4 {[%emt 0:00:30]} 6. Qb3 {[%emt 0:02:48]} Bxc3+ {[%emt 0:02:57]} 7. Qxc3 {[%emt 0:00:20]} d6 {[%emt 0:00:50]} 8. Bg2 {[%emt 0:02:40]} O-O {[%emt 0:00:25]} 9. O-O {[%emt 0:07:32]} Qe8 {[%emt 0:03:30]} 10. Rb1 {[%emt 0:08:58]} Qh5 {[%emt 0:02:13]} 11. b4 {[%emt 0:02:26]} h6 {[%emt 0:01:10]} 12. b5 {[%emt 0:07:50]} Ne7 {[%emt 0:00:52]} 13. c5 {[%emt 0:02:57]} g5 {[%emt 0:02:34]} 14. Ba3 {[%emt 0:07:37]} f4 {[%emt 0:01:58]} 15. cxd6 {[%emt 0:06:50]} Ned5 {[%emt 0:07:20]} 16. Qb3 {[%emt 0:04:35]} Be6 {[%emt 0:02:49]} 17. dxc7 {[%emt 0:09:23]} Nxc7 {[%emt 0:01:30]} 18. Qc3 {[%emt 0:01:32]} Rf7 {[%emt 0:02:33]} 19. Nxe5 {[%emt 0:03:39]} Rg7 {[%emt 0:03:33]} 20. Rb2 {[%emt 0:05:50]} Rc8 {[%emt 0:02:16]} 21. Qd4 {[%emt 0:01:36]} Ng4 {[%emt 0:02:36]} 22. Nxg4 {[%emt 0:01:42]} Qxg4 {[%emt 0:00:33]} 23. Rc1 {[%emt 0:02:33]} Nxb5 {[%emt 0:01:05]} 24. Rxc8+ {[%emt 0:00:32]} Bxc8 {[%emt 0:00:30]} 25. Qd8+ {[%emt 0:00:49]} Kh7 {[%emt 0:00:59]} 26. Rxb5 {[%emt 0:01:34]} h5 {[%emt 0:02:08]} 27. Be4+ {[%emt 0:00:13]} Rg6 {[%emt 0:01:40]} 28. Qe7+ {[%emt 0:00:22]} Kh6 {[%emt 0:02:48]} 29. Qf8+ {[%emt 0:00:22]} Kh7 {[%emt 0:00:22]} 30. Qf7+ {[%emt 0:00:17]} Kh8 {[%emt 0:01:40]} 31. Bb2+ {[%emt 0:00:11]} Rg7 {[%emt 0:00:23]} 32. Qxg7# {[%emt 0:00:11]} 1-0

[Event "EYCC Girls-U10 2019"]
[Site "Bratislava"]
[Date "2019.08.02"]
[Round "1.4"]
[White "Mkrtchyan, Anahit H."]
[Black "Fedorova, Olesya"]
[Result "1-0"]
[ECO "B30"]
[WhiteElo "1155"]
[BlackElo "1516"]
[Annotator "NA"]
[PlyCount "88"]
[EventDate "2019.08.02"]
[EventType "swiss"]
[EventCountry "SVK"]
[SourceTitle "playchess.com"]
[Source "ChessBase"]
[SourceQuality "1"]
[TimeControl "40/5400+30:1800+30"]

1. e4 {[%emt 0:00:00]} c5 {[%emt 0:00:00]} 2. Nf3 {[%emt 0:00:00]} Nc6 {[%emt 0:00:00]} 3. Bb5 {[%emt 0:00:00]} Nf6 {[%emt 0:00:00]} 4. e5 {[%emt 0:00:39]} Nd5 {[%emt 0:00:00]} 5. c3 {[%emt 0:01:40]} g6 {[%emt 0:01:08]} 6. d4 {[%emt 0:02:04]} cxd4 {[%emt 0:01:12]} 7. Qb3 {[%emt 0:10:43]} Nb6 {[%emt 0:08:12]} 8. cxd4 {[%emt 0:03:08]} Bg7 {[%emt 0:01:56]} 9. Bf4 {[%emt 0:05:40]} Na5 {[%emt 0:06:03]} 10. Qd1 {[%emt 0:11:29]} Nd5 {[%emt 0:03:31]} 11. Qd2 {[%emt 0:03:42]} Qb6 {[%emt 0:05:06]} 12. Na3 {[%emt 0:19:09]} a6 {[%emt 0:05:41]} 13. Bc4 {[%emt 0:01:44]} Nxf4 {[%emt 0:01:33]} 14. Qxf4 {[%emt 0:00:39]} Nxc4 {[%emt 0:01:15]} 15. Nxc4 {[%emt 0:00:46]} Qb4+ {[%emt 0:00:12]} 16. Nfd2 {[%emt 0:00:58]} O-O {[%emt 0:04:08]} 17. a3 {[%emt 0:04:18]} Qb5 {[%emt 0:02:23]} 18. O-O {[%emt 0:01:49]} f6 {[%emt 0:07:04]} 19. Qe3 {[%emt 0:05:34]} fxe5 {[%emt 0:07:52]} 20. dxe5 {[%emt 0:02:00]} Qc6 {[%emt 0:03:17]} 21. Qb3 {[%emt 0:04:53]} Qe6 {[%emt 0:03:57]} 22. Nb6 {[%emt 0:02:39]} Qxb3 {[%emt 0:00:31]} 23. Nxb3 {[%emt 0:01:52]} Rb8 {[%emt 0:00:13]} 24. Nc5 Rd8 {[%emt 0:01:59]} 25. Rad1 {[%emt 0:01:54]} d6 {[%emt 0:01:37]} 26. e6 {[%emt 0:03:08]} Bxb2 {[%emt 0:01:35]} 27. Rd3 {[%emt 0:00:51]} Bg7 {[%emt 0:02:05]} 28. Re1 {[%emt 0:01:18]} Bc3 {[%emt 0:05:29]} 29. Re2 {[%emt 0:02:30]} Ba5 {[%emt 0:01:48]} 30. Rb2 {[%emt 0:02:47]} Re8 {[%emt 0:06:06]} 31. Ncd7 {[%emt 0:01:23]} Bxd7 {[%emt 0:03:09]} 32. Nxd7 {[%emt 0:00:56]} Rbc8 {[%emt 0:00:37]} 33. Kf1 {[%emt 0:00:27]} b5 {[%emt 0:01:20]} 34. Rf3 {[%emt 0:00:42]} Rc1+ {[%emt 0:00:36]} 35. Ke2 {[%emt 0:00:05]} Re1+ {[%emt 0:00:07]} 36. Kd3 {[%emt 0:00:12]} Rxe6 {[%emt 0:00:07]} 37. Re2 {[%emt 0:00:25]} Rxe2 {[%emt 0:00:12]} 38. Kxe2 {[%emt 0:00:04]} Rd8 {[%emt 0:00:17]} 39. Nf6+ {[%emt 0:00:30]} exf6 {[%emt 0:00:05]} 40. Rxf6 {[%emt 0:00:00]} Kg7 {[%emt 0:00:00]} 41. Re6 {[%emt 0:00:42]} Kf7 {[%emt 0:00:28]} 42. Re4 {[%emt 0:00:23]} Re8 {[%emt 0:00:05]} 43. Kd3 {[%emt 0:00:20]} Rxe4 {[%emt 0:00:08]} 44. Kxe4 {[%emt 0:00:06]} Ke6 {[%emt 0:00:03]} 1-0

[Event "EYCC Girls-U10 2019"]
[Site "Bratislava"]
[Date "2019.08.02"]
[Round "1.5"]
[White "Sidorenja, Milena"]
[Black "Sekova, Olivia"]
[Result "1-0"]
[ECO "B21"]
[WhiteElo "1573"]
[BlackElo "1193"]
[Annotator "NA"]
[PlyCount "58"]
[EventDate "2019.08.02"]
[EventType "swiss"]
[EventCountry "SVK"]
[SourceTitle "playchess.com"]
[Source "ChessBase"]
[SourceQuality "1"]
[TimeControl "40/5400+30:1800+30"]

1. e4 {[%emt 0:00:00]} c5 {[%emt 0:00:00]} 2. d4 {[%emt 0:00:00]} cxd4 {[%emt 0:00:44]} 3. c3 {[%emt 0:00:00]} d3 {[%emt 0:01:12]} 4. Bxd3 {[%emt 0:00:00]} g6 {[%emt 0:01:19]} 5. c4 {[%emt 0:00:23]} Bg7 {[%emt 0:00:36]} 6. Nc3 {[%emt 0:00:47]} Nc6 {[%emt 0:02:22]} 7. Nf3 {[%emt 0:00:26]} Nf6 {[%emt 0:04:11]} 8. O-O {[%emt 0:00:39]} O-O {[%emt 0:00:46]} 9. Qe2 {[%emt 0:00:38]} d6 {[%emt 0:01:41]} 10. Rd1 {[%emt 0:00:12]} Bd7 {[%emt 0:07:49]} 11. h3 {[%emt 0:00:49]} Rc8 {[%emt 0:00:18]} 12. Bf4 {[%emt 0:01:00]} Qa5 {[%emt 0:11:42]} 13. a3 {[%emt 0:01:13]} Nh5 {[%emt 0:01:36]} 14. Bd2 {[%emt 0:00:21]} Qb6 {[%emt 0:02:39]} 15. Be3 {[%emt 0:02:35]} Nd4 {[%emt 0:08:43]} 16. Nxd4 Bxd4 17. Nd5 {[%emt 0:06:19]} Qxb2 {[%emt 0:04:20]} 18. Bxd4 {[%emt 0:00:45]} Qxd4 {[%emt 0:00:32]} 19. Nxe7+ {[%emt 0:00:21]} Kh8 20. Nxc8 Rxc8 21. Qf3 Be6 22. Be2 Qe5 23. Rab1 Nf4 24. Bf1 Bxc4 {[%emt 0:14:05]} 25. g3 Ne6 26. Bxc4 Rxc4 27. Qxf7 {[%emt 0:34:02]} Rxe4 {[%emt 0:10:31]} 28. Rxb7 {[%emt 0:01:12]} Re1+ {[%emt 0:02:45]} 29. Kh2 {[%emt 0:00:31]} Qg7 {[%emt 0:00:23]} 1-0

[Event "EYCC Girls-U10 2019"]
[Site "Bratislava"]
[Date "2019.08.02"]
[Round "1.6"]
[White "Shatil, Or"]
[Black "Pavesi, Bianca"]
[Result "1-0"]
[ECO "B13"]
[WhiteElo "1185"]
[BlackElo "1537"]
[Annotator "NA"]
[PlyCount "75"]
[EventDate "2019.08.02"]
[EventType "swiss"]
[EventCountry "SVK"]
[SourceTitle "playchess.com"]
[Source "ChessBase"]
[SourceQuality "1"]
[TimeControl "40/5400+30:1800+30"]

1. e4 {[%emt 0:00:00]} c6 {[%emt 0:01:18]} 2. d4 {[%emt 0:00:00]} d5 {[%emt 0:00:33]} 3. exd5 {[%emt 0:00:00]} cxd5 {[%emt 0:00:31]} 4. Bd3 {[%emt 0:00:00]} Nc6 {[%emt 0:01:54]} 5. c3 {[%emt 0:00:06]} Nf6 {[%emt 0:02:43]} 6. Bf4 {[%emt 0:00:11]} Bg4 {[%emt 0:05:38]} 7. Qb3 {[%emt 0:00:09]} Qc8 {[%emt 0:03:57]} 8. Nd2 {[%emt 0:00:09]} e6 {[%emt 0:03:40]} 9. Ngf3 {[%emt 0:00:20]} Be7 {[%emt 0:02:26]} 10. O-O {[%emt 0:00:40]} O-O {[%emt 0:03:54]} 11. Ne5 {[%emt 0:00:13]} Bh5 {[%emt 0:02:36]} 12. Qc2 {[%emt 0:02:40]} Bg6 {[%emt 0:04:23]} 13. Nxg6 {[%emt 0:05:18]} hxg6 {[%emt 0:01:26]} 14. Nf3 {[%emt 0:04:59]} Rd8 {[%emt 0:06:44]} 15. Ne5 {[%emt 0:07:06]} Nh5 {[%emt 0:04:50]} 16. Be3 {[%emt 0:03:45]} Nf6 {[%emt 0:04:52]} 17. Bf4 {[%emt 0:18:37]} Bd6 {[%emt 0:01:39]} 18. Nxc6 {[%emt 0:02:38]} bxc6 {[%emt 0:01:41]} 19. Bxd6 {[%emt 0:03:02]} Rxd6 {[%emt 0:00:22]} 20. Rae1 {[%emt 0:01:51]} Qc7 {[%emt 0:02:10]} 21. Re2 {[%emt 0:03:29]} Rc8 {[%emt 0:01:39]} 22. Rfe1 {[%emt 0:02:38]} c5 {[%emt 0:02:08]} 23. dxc5 {[%emt 0:04:33]} Qxc5 {[%emt 0:01:21]} 24. Qa4 {[%emt 0:03:27]} Qc7 {[%emt 0:06:40]} 25. Qh4 {[%emt 0:02:21]} Rb6 {[%emt 0:04:54]} 26. Re3 Rxb2 {[%emt 0:05:54]} 27. Rh3 {[%emt 0:10:15]} Kf8 {[%emt 0:01:30]} 28. Qh8+ {[%emt 0:02:27]} Ke7 {[%emt 0:01:01]} 29. Qxg7 {[%emt 0:02:08]} Rg8 {[%emt 0:00:59]} 30. Qh6 {[%emt 0:02:14]} Qxc3 {[%emt 0:04:47]} 31. Rc1 {[%emt 0:01:53]} Qa5 {[%emt 0:02:43]} 32. Qf4 {[%emt 0:00:56]} Nd7 {[%emt 0:05:35]} 33. Qg5+ {[%emt 0:06:02]} f6 {[%emt 0:01:57]} 34. Rh7+ {[%emt 0:01:35]} Kd8 {[%emt 0:00:49]} 35. Qe3 {[%emt 0:02:25]} Qd2 {[%emt 0:01:00]} 36. Rxd7+ {[%emt 0:00:53]} Kxd7 {[%emt 0:00:31]} 37. Qxa7+ {[%emt 0:00:04]} Kd6 {[%emt 0:00:30]} 38. Qc7# 1-0

[Event "EYCC Girls-U10 2019"]
[Site "Bratislava"]
[Date "2019.08.02"]
[Round "1.7"]
[White "Toth, Lili"]
[Black "Bendik, Margarita"]
[Result "0-1"]
[ECO "D15"]
[WhiteElo "2199"]
[BlackElo "1188"]
[Annotator "NA"]
[PlyCount "116"]
[EventDate "2019.08.02"]
[EventType "swiss"]
[EventCountry "SVK"]
[SourceTitle "playchess.com"]
[Source "ChessBase"]
[SourceQuality "1"]
[TimeControl "40/5400+30:1800+30"]

1. d4 d5 2. c4 c6 3. Nf3 Nf6 4. Nc3 a6 5. a4 e6 6. e3 Bb4 7. Bd2 O-O 8. Bd3 dxc4 9. Bxc4 Nbd7 10. O-O Nb6 11. Bb3 a5 12. Qc2 Bd7 13. e4 Rc8 14. Qd3 Qe7 15. Rac1 Rfd8 16. Qe2 c5 17. dxc5 Bxc5 18. Be3 Bxe3 19. Qxe3 Nc4 20. Bxc4 Rxc4 21. b3 Rb4 22. Rb1 Bc6 23. e5 Ng4 24. Qe2 Bxf3 25. Qxf3 Nxe5 26. Qe2 Ng6 27. Nb5 Nf4 28. Qe3 h6 29. Qa7 Nd5 30. Qxa5 Qf8 31. Qa7 Qe7 32. f3 b6 33. Qxe7 Nxe7 34. Rb2 Rd3 35. Rfb1 Nc6 36. Kf2 Na5 37. Ke2 Rdxb3 38. Rxb3 Rxb3 39. Rxb3 Nxb3 40. Nc3 Kf8 41. Kd3 Ke7 42. Kc4 Nc5 43. Kb5 Nd7 44. Kc6 f5 45. f4 g5 46. g3 gxf4 47. gxf4 e5 48. fxe5 Ke6 49. Kc7 f4 50. Nd1 Nc5 51. Kxb6 Nxa4+ 52. Kb5 Kxe5 53. Kxa4 Kd4 54. Kb3 Kd3 55. Nf2+ Ke2 56. Ng4 h5 57. Ne5 f3 58. Nxf3 Kxf3 0-1

[Event "EYCC Girls-U10 2019"]
[Site "Bratislava"]
[Date "2019.08.02"]
[Round "1.8"]
[White "Gretic, Tina"]
[Black "Kirtadze, Anastasia"]
[Result "0-1"]
[ECO "C01"]
[WhiteElo "1188"]
[BlackElo "1532"]
[Annotator "NA"]
[PlyCount "122"]
[EventDate "2019.08.02"]
[EventType "swiss"]
[EventCountry "SVK"]
[SourceTitle "playchess.com"]
[Source "ChessBase"]
[SourceQuality "1"]
[TimeControl "40/5400+30:1800+30"]

1. e4 {[%emt 0:00:00]} e6 {[%emt 0:00:00]} 2. d4 {[%emt 0:00:00]} d5 {[%emt 0:00:00]} 3. exd5 {[%emt 0:00:00]} exd5 {[%emt 0:00:14]} 4. Bd3 {[%emt 0:00:00]} Bd6 {[%emt 0:00:11]} 5. Nf3 {[%emt 0:00:43]} Ne7 {[%emt 0:01:38]} 6. Be3 {[%emt 0:03:16]} O-O {[%emt 0:00:16]} 7. O-O {[%emt 0:00:11]} h6 {[%emt 0:00:15]} 8. Qd2 {[%emt 0:01:48]} Bf5 {[%emt 0:04:58]} 9. Nc3 {[%emt 0:03:10]} c6 {[%emt 0:01:42]} 10. Rfe1 {[%emt 0:04:47]} Qc7 {[%emt 0:02:38]} 11. h3 {[%emt 0:04:54]} Nd7 {[%emt 0:02:12]} 12. Bxf5 {[%emt 0:01:37]} Nxf5 {[%emt 0:00:18]} 13. Qd3 {[%emt 0:01:23]} g6 {[%emt 0:02:09]} 14. a3 {[%emt 0:03:02]} Rfe8 {[%emt 0:02:02]} 15. Qd2 {[%emt 0:04:23]} Kg7 16. Rad1 Nf6 17. Qd3 Ne4 18. Nd2 Nxc3 19. Qxc3 Re7 20. Nf3 Rae8 21. Qd3 Nxe3 22. Rxe3 Rxe3 23. fxe3 Bg3 24. Rd2 f5 25. Re2 Qe7 26. Kf1 Rf8 27. c4 Qe4 28. Rd2 Qxd3+ 29. Rxd3 dxc4 30. Rc3 b5 31. b3 cxb3 32. Rxb3 Re8 33. Rc3 Re6 34. Nd2 Bc7 35. d5 Ba5 36. Rxc6 Rxc6 37. dxc6 Kf6 38. Nb3 Bb6 39. Nd4 a6 40. Ke2 Ke7 41. Kd3 Kd6 42. Kc3 Bxd4+ 43. exd4 Kxc6 44. Kb4 Kb6 45. d5 a5+ 46. Kc3 Kc5 47. d6 Kxd6 48. Kd4 g5 49. g3 h5 50. Kd3 Kd5 51. Ke3 b4 52. axb4 axb4 53. Kd3 f4 54. gxf4 gxf4 55. Kd2 Kd4 56. Kc2 f3 57. Kd1 Kd3 58. Ke1 b3 59. Kd1 b2 60. Ke1 Ke3 61. Kf1 b1=Q# 0-1

[Event "EYCC Girls-U10 2019"]
[Site "Bratislava"]
[Date "2019.08.02"]
[Round "1.9"]
[White "Arzur, Maia"]
[Black "Bursali, Ela"]
[Result "0-1"]
[ECO "C54"]
[WhiteElo "1507"]
[BlackElo "1197"]
[Annotator "NA"]
[PlyCount "120"]
[EventDate "2019.08.02"]
[EventType "swiss"]
[EventCountry "SVK"]
[SourceTitle "playchess.com"]
[Source "ChessBase"]
[SourceQuality "1"]
[TimeControl "40/5400+30:1800+30"]

1. e4 {[%emt 0:00:00]} e5 {[%emt 0:00:00]} 2. Nf3 {[%emt 0:00:24]} Nc6 {[%emt 0:00:00]} 3. Bc4 {[%emt 0:00:17]} Bc5 {[%emt 0:00:07]} 4. c3 {[%emt 0:00:09]} Nf6 {[%emt 0:00:05]} 5. d3 {[%emt 0:00:35]} h6 {[%emt 0:00:28]} 6. Bb3 {[%emt 0:01:28]} d6 7. Nbd2 {[%emt 0:01:15]} a6 {[%emt 0:01:00]} 8. O-O {[%emt 0:01:09]} O-O {[%emt 0:00:07]} 9. h3 {[%emt 0:01:48]} Ne7 {[%emt 0:01:16]} 10. Re1 {[%emt 0:01:10]} Ng6 {[%emt 0:00:07]} 11. Nf1 {[%emt 0:01:23]} Be6 {[%emt 0:00:16]} 12. Ng3 {[%emt 0:02:42]} Ba7 {[%emt 0:01:11]} 13. Be3 {[%emt 0:02:07]} c6 {[%emt 0:03:53]} 14. Bxa7 {[%emt 0:02:56]} Rxa7 {[%emt 0:00:18]} 15. d4 Ra8 {[%emt 0:01:30]} 16. Bxe6 {[%emt 0:05:38]} fxe6 {[%emt 0:00:17]} 17. Qb3 {[%emt 0:00:18]} Qe7 {[%emt 0:01:21]} 18. Rad1 {[%emt 0:01:51]} exd4 {[%emt 0:00:24]} 19. cxd4 {[%emt 0:00:29]} Qf7 {[%emt 0:03:17]} 20. Rd3 {[%emt 0:07:39]} d5 {[%emt 0:04:00]} 21. e5 {[%emt 0:01:34]} Nh7 {[%emt 0:00:26]} 22. Qc2 {[%emt 0:01:14]} Nf4 {[%emt 0:05:04]} 23. Rb3 {[%emt 0:04:15]} Rab8 {[%emt 0:01:06]} 24. Ree3 {[%emt 0:03:03]} Qe7 {[%emt 0:02:04]} 25. Qd2 {[%emt 0:03:03]} Rf7 {[%emt 0:04:23]} 26. Qd1 {[%emt 0:04:12]} Rbf8 {[%emt 0:02:18]} 27. Ne2 {[%emt 0:02:40]} Nxe2+ {[%emt 0:00:41]} 28. Qxe2 {[%emt 0:00:37]} Rf4 {[%emt 0:06:06]} 29. Qd1 {[%emt 0:03:53]} R8f7 {[%emt 0:01:46]} 30. a4 {[%emt 0:02:13]} Ng5 {[%emt 0:02:45]} 31. Nxg5 {[%emt 0:02:11]} Qxg5 {[%emt 0:00:14]} 32. f3 {[%emt 0:01:00]} Qg3 {[%emt 0:00:44]} 33. Qe1 {[%emt 0:00:59]} Qxe1+ {[%emt 0:00:36]} 34. Rxe1 {[%emt 0:00:24]} Rxd4 {[%emt 0:00:12]} 35. Ra3 {[%emt 0:00:48]} Rb4 {[%emt 0:00:42]} 36. Re2 {[%emt 0:00:50]} Rff4 {[%emt 0:01:26]} 37. g3 {[%emt 0:02:47]} Rfd4 {[%emt 0:01:13]} 38. Kf2 {[%emt 0:00:41]} Rxa4 {[%emt 0:00:32]} 39. Rb3 {[%emt 0:01:32]} Rdb4 {[%emt 0:00:44]} 40. Rc3 {[%emt 0:00:00]} Ra2 {[%emt 0:00:00]} 41. Rcc2 {[%emt 0:00:28]} Rb3 {[%emt 0:02:07]} 42. Red2 {[%emt 0:01:14]} Kf7 {[%emt 0:00:38]} 43. f4 {[%emt 0:00:37]} g6 {[%emt 0:00:16]} 44. Kg2 {[%emt 0:01:04]} Ke7 {[%emt 0:01:28]} 45. g4 {[%emt 0:00:31]} a5 {[%emt 0:04:06]} 46. h4 {[%emt 0:01:18]} h5 {[%emt 0:01:01]} 47. g5 {[%emt 0:01:33]} a4 {[%emt 0:01:19]} 48. Kg1 {[%emt 0:03:50]} Rh3 {[%emt 0:00:59]} 49. Rh2 {[%emt 0:00:57]} Rxh2 {[%emt 0:00:09]} 50. Rxh2 {[%emt 0:00:27]} a3 {[%emt 0:00:11]} 51. bxa3 {[%emt 0:00:46]} Rxa3 {[%emt 0:00:07]} 52. Rb2 {[%emt 0:00:20]} b5 {[%emt 0:00:33]} 53. Kg2 {[%emt 0:00:51]} Ra6 {[%emt 0:00:12]} 54. Kf3 {[%emt 0:00:40]} Rb6 {[%emt 0:00:37]} 55. Ke3 {[%emt 0:01:04]} Ra6 {[%emt 0:00:27]} 56. Kf2 {[%emt 0:00:26]} Ra4 {[%emt 0:00:08]} 57. Kf3 {[%emt 0:00:36]} b4 {[%emt 0:00:27]} 58. Ke3 {[%emt 0:01:21]} c5 {[%emt 0:00:14]} 59. Rc2 Ra3+ 60. Kd2 c4 {Ke3} 0-1